bitfinex-derivatives/quotes_ETHF0:USTF0_20250817
["timestamp","ask_amount","ask_price","bid_price","bid_amount"]
[1755404965710,1.73276029,4474.1,4474.0,1.1118]
[1755404966216,1.73276029,4474.1,4474.0,1.2872]
[1755404967114,1.73276936,4474.1,4474.0,1.2872]
[1755404968517,1.07206936,4474.1,4474.0,1.51]
[1755404968717,1.43056936,4474.1,4474.0,1.51]
[1755404968918,1.73276936,4474.1,4474.0,1.51]
[1755404969926,1.73276936,4474.1,4474.0,1.2872]
[1755404973020,1.5214,4474.1,4474.0,1.2872]
[1755404973220,1.72961046,4474.1,4474.0,1.1118]
[1755404974823,1.72961046,4474.1,4474.0,0.8635]
[1755404975923,1.72961046,4474.1,4473.8,3.2078]
[1755404976124,0.6156,4473.9,4473.8,3.9541]
[1755404976324,1.5214,4473.9,4473.8,4.2024]
[1755404976826,1.5214,4473.9,4473.8,4.495]
[1755404977420,1.5214,4473.9,4473.8,1.2872]
[1755404977626,1.7296505,4473.9,4473.8,4.495]
[1755404977830,1.72962792,4473.9,4473.8,4.495]
[1755404978024,1.5214,4473.9,4473.8,4.495]
[1755404978420,1.72963514,4473.9,4473.8,4.495]
[1755404978625,1.5214,4473.9,4473.8,4.495]
[1755404979326,1.5214,4473.9,4473.8,4.7178]
[1755404979527,1.2192,4473.9,4473.8,4.7178]
[1755404979828,1.0196,4473.9,4473.8,4.7178]
[1755404980028,0.2451,4474.6,4473.9,0.658]
[1755404980328,1.72963511,4474.5,4474.4,0.8635]
[1755404982024,1.5214,4474.5,4474.4,0.8635]
[1755404982226,1.72965157,4474.5,4474.4,0.8635]
[1755404982524,1.06895157,4474.5,4473.8,3.2078]
[1755404982721,1.5214,4473.9,4473.8,3.837]
[1755404982931,1.72965415,4473.9,4473.8,3.837]
[1755404983230,1.72966662,4473.9,4473.8,4.495]
[1755404983426,1.72966931,4473.9,4473.8,4.495]
[1755404983924,1.5214,4473.9,4473.8,4.495]
[1755404984119,1.72966558,4473.9,4473.8,4.495]
[1755404984326,1.72966558,4473.9,4473.8,4.7178]
[1755404984928,1.72967538,4473.9,4473.8,4.7178]
[1755404988229,1.72972499,4473.9,4473.8,4.7178]
[1755404989231,1.5214,4473.9,4473.8,4.7178]
[1755404994428,0.6818,4474.8,4473.8,4.50651]
[1755404994633,1.5337,4474.4,4474.3,4.5026]
[1755404994833,1.74204885,4474.4,4474.3,4.5026]
[1755404996231,0.63384885,4474.4,4474.3,4.5026]
[1755404996434,1.55694885,4474.4,4474.3,4.7248]
[1755404996633,1.74204885,4474.4,4474.3,4.7248]
[1755404997230,1.74204885,4474.4,4474.3,4.5026]
[1755404997431,1.73973674,4474.4,4474.3,4.5026]
[1755405000142,1.73973674,4474.4,4474.3,3.2078]
[1755405000543,0.8014114,4474.4,4474.0,0.3025]
[1755405000744,1.5337,4474.1,4474.0,0.3025]
[1755405001041,1.5337,4474.1,4474.0,1.2948]
[1755405002551,1.5337,4474.1,4474.0,1.517]
[1755405003639,0.9383,4474.9,4474.1,0.5247]
[1755405003848,0.9383,4474.9,4473.9,0.4467]
[1755405003849,1.2772,4474.3,4474.2,1.2948]
[1755405004040,1.73970676,4474.3,4474.2,1.2948]
[1755405004240,3.2078,4475.0,4474.2,1.74147]
[1755405004554,1.73968852,4474.9,4474.8,1.2948]
[1755405006251,1.73968852,4474.9,4474.8,0.4875]
[1755405006447,1.73968852,4474.9,4474.8,0.8665]
[1755405006851,1.73968852,4474.9,4474.8,1.2948]
[1755405008550,1.5337,4474.9,4474.8,1.2948]
[1755405008749,1.73955094,4474.9,4474.8,1.2948]
[1755405009151,1.09015094,4474.9,4474.8,0.6133]
[1755405009346,1.5337,4474.9,4474.8,1.2948]
[1755405010650,1.5337,4474.9,4474.8,1.1282]
[1755405012252,1.5337,4474.9,4474.8,0.185]
[1755405013645,0.3541,4474.4,4474.3,3.2078]
[1755405013847,1.73940674,4474.4,4474.3,3.2078]
[1755405017558,1.5337,4474.4,4474.3,3.2078]
[1755405017759,1.73946214,4474.4,4474.3,3.2078]
[1755405018058,1.5337,4474.4,4474.3,3.2078]
[1755405018358,1.73946235,4474.4,4474.3,3.2078]
[1755405018949,1.73946235,4474.4,4474.3,3.8724]
[1755405019555,1.73946235,4474.4,4474.3,3.4849]
[1755405019860,1.73946235,4474.4,4474.3,3.6829]
[1755405020160,1.73946235,4474.4,4474.3,4.0704]
[1755405020356,1.73946235,4474.4,4474.3,3.6829]
[1755405020855,1.73947463,4474.4,4474.3,3.6829]
[1755405021651,1.73947463,4474.4,4474.3,3.2078]
[1755405022151,1.73947463,4474.4,4474.3,3.8724]
[1755405022556,1.73947463,4474.4,4474.3,3.4849]
[1755405022752,1.73947463,4474.4,4474.3,3.2078]
[1755405023757,1.1247,4473.8,4473.4,1.98795266]
[1755405023957,1.4917,4473.2,4473.1,0.10060025]
[1755405025162,1.4917,4473.2,4473.1,0.37770025]
[1755405025362,1.4917,4473.2,4473.1,0.76520025]
[1755405025559,1.4917,4473.2,4473.1,1.37280025]
[1755405025764,1.69735257,4473.2,4473.1,1.37280025]
[1755405026659,1.4917,4473.2,4473.1,1.37280025]
[1755405026859,1.69725183,4473.2,4473.1,1.37280025]
[1755405027263,1.69725183,4473.2,4473.1,0.93260025]
[1755405027455,1.69725183,4473.2,4473.1,0.10060025]
[1755405028162,1.4917,4473.2,4473.1,0.10060025]
[1755405028663,1.6971583,4473.2,4473.1,0.10060025]
[1755405029058,1.69717772,4473.2,4473.1,0.10060025]
[1755405030465,0.44817772,4473.2,4473.1,0.76520025]
[1755405030666,1.09457772,4473.2,4473.1,1.37280025]
[1755405030965,0.2427,4473.5,4473.1,0.70820025]
[1755405031153,0.6464,4473.6,4473.4,0.6076]
[1755405031356,0.7128,4473.6,4473.5,1.4948]
[1755405031561,0.882,4473.6,4473.5,1.4948]
[1755405031763,1.1247,4473.6,4473.5,1.4948]
[1755405031962,1.4917,4473.6,4473.5,1.4948]
[1755405032168,1.4917,4473.6,4473.5,1.2722]
[1755405036769,1.4917,4473.6,4473.5,0.8626]
[1755405036969,1.4917,4473.6,4473.5,0.4751]
[1755405037164,1.4917,4473.6,4473.5,0.8626]
[1755405037371,1.4917,4473.6,4473.5,1.2722]
[1755405038672,1.4917,4473.6,4473.5,1.4948]
[1755405038862,1.2123,4473.6,4473.5,1.4948]
[1755405039167,1.4917,4473.6,4473.5,1.4948]
[1755405039566,0.8453,4473.6,4473.5,1.4948]
[1755405039864,3.4505,4474.1,4473.7,0.7971]
[1755405040063,3.2078,4474.1,4473.9,0.8302]
[1755405040271,3.4505,4474.1,4474.0,1.4948]
[1755405040470,0.2427,4474.1,4474.0,1.4948]
[1755405041371,1.4917,4474.8,4474.7,1.2722]
[1755405041670,1.69702507,4474.8,4474.7,1.2722]
[1755405041971,1.4917,4474.8,4474.7,1.2722]
[1755405044470,1.4917,4474.8,4474.7,1.4948]
[1755405044669,1.4917,4474.8,4474.7,1.2722]
[1755405045969,1.4917,4474.8,4474.3,3.5953]
[1755405046170,1.4917,4474.4,4474.3,3.2078]
[1755405046371,1.4917,4474.4,4474.3,4.48]
[1755405048176,1.4917,4474.4,4474.3,3.2078]
[1755405048375,0.6026,4474.4,4473.8,3.4309]
[1755405048673,1.5222,4474.3,4474.2,0.8171]
[1755405049869,0.9198,4475.2,4474.2,0.6175]
[1755405050169,1.72750132,4475.1,4475.0,1.2486]
[1755405050674,0.2612,4475.0,4474.4,3.2078]
[1755405050876,3.2078,4475.3,4474.4,4.4564]
[1755405050877,1.5222,4474.5,4474.4,4.4564]
[1755405051471,1.5222,4474.5,4474.4,0.4425]
[1755405051770,1.5222,4474.0,4473.9,1.2486]
[1755405052270,1.5222,4474.0,4473.9,1.4717]
[1755405052470,1.2375,4474.0,4473.9,1.4717]
[1755405053375,3.2078,4474.8,4473.9,1.4717]
[1755405053680,1.5222,4474.6,4474.5,1.2486]
[1755405054072,1.5222,4474.6,4474.5,1.0736]
[1755405054780,1.5222,4474.6,4474.5,0.186]
[1755405054973,0.6024,4474.0,4473.9,0.886]
[1755405055176,1.5222,4474.0,4473.9,1.2486]
[1755405058179,1.5222,4474.0,4473.9,1.4717]
[1755405059081,0.9198,4474.7,4474.0,0.6311]
[1755405059284,0.1734,4474.2,4474.1,1.2486]
[1755405059578,1.5222,4474.2,4474.1,1.4717]
[1755405060180,0.2612,4474.2,4474.1,1.4717]
[1755405060980,1.5222,4474.2,4474.1,1.2486]
[1755405061481,1.72978219,4474.2,4474.1,1.2486]
[1755405062082,0.20758219,4474.2,4474.1,1.2486]
[1755405062277,0.2612,4475.3,4474.1,1.2486]
[1755405062278,0.4346,4475.2,4475.1,0.4425]
[1755405062582,1.01603982,4475.2,4475.1,1.4717]
[1755405063083,1.30073982,4475.2,4475.1,1.4717]
[1755405063574,1.55173982,4475.2,4475.1,1.4717]
[1755405063777,1.72973982,4475.2,4475.1,1.2486]
[1755405065583,1.5222,4476.4,4476.3,1.2486]
[1755405066476,0.3739,4476.9,4476.3,0.6175]
[1755405066786,4.0714,4477.1,4477.0,0.886]
[1755405067083,4.0714,4477.1,4477.0,1.2486]
[1755405067288,4.73,4477.1,4477.0,1.2486]
[1755405067981,4.73,4477.1,4477.0,0.186]
[1755405068782,1.5222,4476.4,4476.3,3.2078]
[1755405069083,1.5222,4476.4,4476.3,0.9921]
[1755405069283,1.5222,4476.4,4476.3,1.2486]
[1755405069683,1.5222,4476.4,4476.3,1.4717]
[1755405070285,1.5222,4476.4,4476.3,1.2486]
[1755405070983,0.1734,4476.5,4476.4,0.6311]
[1755405071187,1.0595,4476.5,4476.4,1.2486]
[1755405071386,1.5222,4476.5,4476.4,1.2486]
[1755405072382,0.8636,4476.5,4476.4,1.4717]
[1755405072583,0.4346,4476.5,4476.4,1.4717]
[1755405073185,0.2612,4476.5,4476.4,1.4717]
[1755405073788,3.8102,4477.1,4477.0,0.361]
[1755405074295,4.73,4477.1,4477.0,0.361]
[1755405074790,4.73,4477.1,4477.0,1.2486]
[1755405076290,0.6024,4476.9,4476.8,0.6311]
[1755405076591,1.5222,4476.9,4476.8,0.6311]
[1755405077789,0.6252,4476.8,4476.0,3.4847]
[1755405077998,1.4863,4476.7,4476.6,1.2316]
[1755405081495,0.6068,4476.2,4476.1,1.2316]
[1755405081697,1.4863,4476.2,4476.1,1.2316]
[1755405081991,1.4863,4476.2,4476.1,1.4548]
[1755405082197,0.4197,4476.2,4476.1,1.4548]
[1755405082391,0.2543,4476.2,4476.1,1.4548]
[1755405083494,0.6107,4476.7,4476.1,0.8218]
[1755405083792,1.232,4476.7,4476.6,1.4548]
[1755405084389,3.2078,4477.1,4476.1,0.3561]
[1755405084390,0.2543,4476.6,4476.1,0.3561]
[1755405084589,0.6957,4476.6,4476.5,0.1874]
[1755405084789,0.8611,4476.6,4476.5,0.1874]
[1755405085193,4.6941,4476.6,4476.5,0.1874]
[1755405085897,3.2078,4476.6,4476.5,0.1874]
[1755405086196,3.6275,4476.6,4476.5,1.4548]
[1755405086395,0.4197,4476.6,4476.5,1.2316]
[1755405086698,0.4197,4476.6,4476.5,1.4548]
[1755405087497,3.2078,4477.3,4476.5,1.4548]
[1755405087797,1.4863,4477.2,4477.1,0.8204]
[1755405088391,1.4863,4477.2,4477.1,1.2316]
[1755405088789,1.4863,4477.2,4477.1,1.4548]
[1755405093093,0.4197,4477.2,4477.1,1.4548]
[1755405093501,1.4863,4477.2,4477.1,1.2316]
[1755405094898,1.4863,4477.2,4477.1,1.4548]
[1755405095307,1.4863,4477.2,4476.0,1.98795266]
[1755405095308,1.4863,4476.1,4476.0,4.4394]
[1755405095897,0.2543,4477.0,4476.1,0.633]
[1755405096102,0.4197,4477.0,4476.9,1.4548]
[1755405096301,0.632552,4477.0,4476.9,1.4548]
[1755405097995,0.2543,4477.0,4476.9,1.4548]
[1755405098400,0.6252,4477.5,4476.9,1.4548]
[1755405098604,0.63249931,4477.4,4477.3,0.8218]
[1755405098804,0.88697347,4477.4,4477.3,1.4548]
[1755405099000,1.69907347,4477.4,4477.3,1.2316]
[1755405099202,0.46707347,4477.4,4477.3,1.2316]
[1755405099403,1.69907347,4477.4,4477.3,1.4548]
[1755405100106,1.69907347,4477.4,4477.3,1.2316]
[1755405100511,1.69907347,4477.4,4477.1,0.2769]
[1755405100713,1.4863,4477.2,4477.1,0.4643]
[1755405101006,1.69907347,4477.2,4477.1,0.4643]
[1755405101313,1.69907347,4477.2,4477.1,0.8204]
[1755405101711,1.4863,4477.1,4477.0,0.5986]
[1755405101911,1.4863,4477.1,4477.0,1.2316]
[1755405102500,1.69907246,4477.1,4477.0,1.2316]
[1755405102709,1.69907246,4477.1,4477.0,0.1874]
[1755405102905,0.4414,4476.7,4476.6,3.2078]
[1755405103206,1.4863,4476.7,4476.6,3.2078]
[1755405103412,0.81961194,4476.7,4476.3,0.633]
[1755405103610,1.4863,4476.4,4476.3,1.2316]
[1755405103810,1.69911194,4476.4,4476.3,1.2316]
[1755405104309,1.69911194,4476.4,4476.1,3.2078]
[1755405104512,3.2078,4477.0,4476.1,3.2078]
[1755405104513,1.4863,4476.2,4476.1,4.0282]
[1755405104703,1.4863,4476.2,4476.1,4.4394]
[1755405104907,1.4863,4476.2,4476.1,4.6626]
[1755405106315,1.0306,4476.2,4476.1,4.6626]
[1755405106504,1.2175,4476.2,4476.1,4.6626]
[1755405106710,1.4863,4476.2,4476.1,4.4394]
[1755405107804,0.8611,4476.2,4476.1,4.6619]
[1755405108614,0.6742,4476.2,4476.1,4.6619]
[1755405108914,0.2543,4476.2,4476.1,4.6619]
[1755405109514,0.4218,4476.2,4476.1,4.6619]
[1755405110011,3.2078,4477.0,4476.1,4.4394]
[1755405110215,1.43221314,4476.9,4476.8,0.5908]
[1755405110415,1.43221314,4476.9,4476.8,1.2414]
[1755405110416,1.71141314,4476.9,4476.8,1.2414]
[1755405110611,1.71141314,4476.9,4476.1,3.2078]
[1755405110612,0.2532,4476.8,4476.1,3.2078]
[1755405110818,1.4986,4476.2,4476.1,4.4492]
[1755405112416,1.4986,4476.2,4476.1,3.3802]
[1755405114821,1.4986,4476.2,4476.1,3.2078]
[1755405116316,0.5905,4475.7,4475.6,1.2414]
[1755405116515,1.4986,4475.7,4475.6,1.2414]
[1755405117315,1.4986,4475.7,4475.6,0.8657]
[1755405117523,1.1229,4475.6,4475.5,0.5908]
[1755405117825,1.4986,4475.6,4475.5,1.2414]
[1755405119020,1.4986,4475.6,4475.5,0.4473]
[1755405119219,1.4986,4475.6,4475.5,0.823]
[1755405119423,1.4986,4474.7,4474.6,0.5908]
[1755405119626,1.4986,4474.7,4474.6,1.2414]
[1755405119822,1.71717947,4474.7,4474.6,1.0745]
[1755405120024,0.5905,4474.3,4474.2,3.7986]
[1755405120224,1.4986,4474.3,4474.2,3.7986]
[1755405120526,0.2532,4475.2,4474.4,0.3757]
[1755405120828,1.4986,4475.2,4475.1,0.1724]
[1755405121019,1.71716068,4475.2,4475.1,0.1724]
[1755405121219,1.4986,4474.9,4474.8,1.2414]
[1755405121422,1.71716068,4474.9,4474.8,1.2414]
[1755405121621,1.71715734,4474.9,4474.8,1.2414]
[1755405121821,1.71701618,4474.9,4474.8,1.2414]
[1755405122324,1.4986,4474.9,4474.8,1.2414]
[1755405123427,1.4986,4474.9,4474.8,1.4646]
[1755405123428,0.8437,4474.9,4474.8,1.4646]
[1755405123633,0.6672,4474.9,4474.8,1.4646]
[1755405123833,0.4207,4474.9,4474.8,1.4646]
[1755405124435,0.414,4475.4,4475.3,0.2515]
[1755405124627,1.18431998,4475.4,4475.3,1.2414]
[1755405124824,0.21811998,4475.4,4475.3,4.4492]
[1755405125028,0.8437,4475.8,4475.7,0.5908]
[1755405125230,1.4986,4475.8,4475.7,1.2414]
[1755405125532,1.4986,4475.8,4475.7,1.4646]
[1755405125733,0.6672,4475.8,4475.7,1.4646]
[1755405125929,3.2078,4476.9,4475.8,0.8738]
[1755405125930,0.9081,4476.1,4475.8,0.8738]
[1755405126233,1.4986,4476.1,4476.0,1.2414]
[1755405126628,0.8437,4476.1,4476.0,1.4646]
[1755405127336,1.4986,4476.1,4476.0,1.2414]
[1755405129236,1.4986,4476.1,4476.0,0.5908]
[1755405129538,1.4986,4476.1,4476.0,0.1724]
[1755405130038,1.4986,4476.1,4476.0,0.823]
[1755405130243,1.4986,4476.0,4475.9,1.069]
[1755405130533,1.4986,4476.0,4475.9,1.4646]
[1755405130930,3.2078,4476.9,4475.9,0.5908]
[1755405131129,3.2078,4476.9,4476.7,1.2414]
[1755405131130,1.71680827,4476.8,4476.7,1.2414]
[1755405131639,1.71680827,4476.8,4476.7,0.1724]
[1755405132443,1.71680827,4476.8,4476.4,0.2749]
[1755405132638,0.1675,4476.0,4475.9,0.8175]
[1755405132938,0.4207,4476.0,4475.9,1.4646]
[1755405133534,0.4207,4476.0,4475.8,3.8584]
[1755405133535,0.5905,4476.0,4475.8,3.8584]
[1755405133839,1.716961,4475.9,4475.8,4.4492]
[1755405134233,1.71696339,4475.9,4475.8,4.4492]
[1755405136730,1.71698084,4475.9,4475.0,3.2078]
[1755405137044,1.4986,4475.1,4475.0,4.4492]
[1755405137434,1.4986,4475.1,4475.0,4.0735]
[1755405137635,1.4986,4475.1,4475.0,3.3802]
[1755405138039,1.4986,4475.1,4475.0,3.6435]
[1755405138540,1.4986,4475.1,4475.0,3.3802]
[1755405139636,1.71700819,4475.1,4475.0,3.3802]
[1755405139835,1.71700819,4475.1,4475.0,3.2078]
[1755405141342,1.25560819,4475.1,4475.0,4.4453]
[1755405141742,1.70010819,4475.1,4475.0,4.4453]
[1755405142643,1.4817,4475.1,4475.0,4.4453]
[1755405142846,1.70005794,4475.1,4475.0,4.4453]
[1755405146049,1.70005035,4475.1,4475.0,4.4453]
[1755405146450,0.21835035,4475.1,4475.0,4.6687]
[1755405146644,0.8459,4475.7,4475.6,0.595]
[1755405146838,1.70003081,4475.7,4475.6,1.2375]
[1755405147445,1.4817,4475.7,4475.6,1.2375]
[1755405147644,0.2579,4475.7,4475.6,1.4609]
[1755405147945,0.8459,4476.1,4476.0,0.595]
[1755405148150,1.69595948,4476.1,4476.0,1.2375]
[1755405148650,1.69595948,4476.1,4475.5,3.2078]
[1755405148838,0.588,4475.0,4474.9,3.8028]
[1755405149042,0.8459,4475.0,4474.9,4.0262]
[1755405149445,0.8937,4475.8,4475.0,0.6425]
[1755405149650,1.10800914,4475.7,4474.9,3.4312]
[1755405149844,0.6358,4475.5,4475.0,0.6425]
[1755405150050,1.4817,4475.5,4475.4,0.1866]
[1755405150346,1.69600945,4475.5,4475.4,1.2375]
[1755405150548,0.2579,4476.0,4475.5,0.6026]
[1755405150752,1.4817,4476.0,4475.9,1.2375]
[1755405150957,0.588,4475.5,4475.4,3.8028]
[1755405151254,1.2224,4475.5,4475.4,4.4453]
[1755405151551,1.4817,4475.5,4475.4,4.4453]
[1755405152351,1.4817,4475.5,4475.4,4.6687]
[1755405153052,1.4817,4475.5,4475.4,4.4453]
[1755405153348,1.4817,4475.5,4475.4,4.0661]
[1755405153553,1.4817,4475.5,4475.4,3.2078]
[1755405154154,1.4817,4475.5,4475.4,4.4453]
[1755405154351,0.8459,4476.0,4475.9,0.595]
[1755405154551,0.588,4475.5,4475.4,3.3944]
[1755405154851,1.4817,4475.5,4475.4,3.3944]
[1755405155054,1.4817,4475.5,4475.4,4.4453]
[1755405157355,1.4817,4475.5,4475.4,4.6687]
[1755405157854,1.4817,4475.5,4475.4,4.4453]
[1755405161260,0.8937,4476.4,4475.4,4.0262]
[1755405161453,0.8937,4476.4,4476.3,1.2375]
[1755405161454,1.4817,4476.4,4476.3,1.2375]
[1755405161756,1.69614736,4476.4,4476.3,1.2375]
[1755405163059,1.69614736,4476.4,4476.3,0.1866]
[1755405163259,0.588,4476.2,4476.1,0.8291]
[1755405163458,1.69614736,4476.2,4476.1,0.8291]
[1755405164061,1.69614736,4476.2,4476.1,0.1866]
[1755405164958,1.69614736,4476.2,4475.3,0.6425]
[1755405165153,1.4817,4475.4,4475.3,1.2375]
[1755405168965,0.588,4475.4,4475.1,3.2078]
[1755405169266,1.456,4475.2,4475.1,3.2078]
[1755405169468,1.67054861,4475.2,4475.1,3.2078]
[1755405170157,0.5815,4474.6,4474.5,3.2078]
[1755405170358,1.67058284,4474.6,4474.5,3.2078]
[1755405170559,1.67057715,4474.6,4474.5,3.2078]
[1755405174769,1.67057715,4474.6,4474.1,0.6374]
[1755405174963,0.5815,4474.2,4474.1,0.9799]
[1755405175158,1.456,4474.2,4474.1,0.9799]
[1755405175358,1.456,4474.2,4473.5,3.2078]
[1755405175359,0.4153,4473.6,4473.5,3.802]
[1755405175668,0.6758,4473.6,4473.5,4.2765]
[1755405175868,0.6758,4473.6,4473.5,4.6622]
[1755405178668,0.4189,4473.6,4473.5,4.6622]
[1755405181164,1.456,4473.6,4473.5,4.6622]
[1755405181369,1.456,4473.6,4473.5,4.4394]
[1755405182675,1.456,4473.6,4473.5,3.802]
[1755405182871,1.456,4473.6,4473.5,3.2078]
[1755405183076,1.456,4473.6,4473.5,4.4394]
[1755405183280,0.614,4474.2,4473.5,4.6622]
[1755405183477,1.1955,4474.2,4474.1,0.5942]
[1755405183779,1.1955,4474.2,4474.1,1.2316]
[1755405184185,1.456,4474.2,4474.1,1.2316]
[1755405185083,1.456,4474.2,4474.1,0.171]
[1755405185280,1.456,4473.6,4473.5,4.4394]
[1755405185877,3.2078,4474.4,4473.5,4.6622]
[1755405186072,0.4231,4473.7,4473.6,1.2316]
[1755405186277,1.456,4473.7,4473.6,1.2316]
[1755405187075,0.5815,4473.7,4473.5,3.2078]
[1755405187277,1.456,4473.6,4473.5,4.4394]
[1755405188077,1.456,4473.6,4473.5,3.2078]
[1755405188283,0.5815,4473.6,4473.1,0.10060025]
[1755405188483,0.5815,4473.2,4473.1,0.10060025]
[1755405188785,0.5815,4473.0,4472.9,3.2078]
[1755405188975,1.456,4473.0,4472.9,3.2078]
[1755405189185,1.456,4473.0,4472.9,4.0162]
[1755405189985,1.456,4473.0,4472.9,0.8084]
[1755405190386,1.456,4473.0,4472.3,3.4306]
[1755405190387,0.5815,4472.7,4472.6,0.2517]
[1755405190583,0.614,4472.6,4472.3,3.5935]
[1755405190783,1.456,4472.4,4472.3,4.0162]
[1755405191478,1.456,4472.4,4472.3,3.2078]
[1755405191884,0.5815,4472.4,4471.7,3.8452]
[1755405192086,0.5815,4471.8,4471.7,4.4394]
[1755405192291,1.1976,4471.8,4471.7,4.4394]
[1755405192591,1.1976,4471.8,4471.7,4.6622]
[1755405192780,0.842,4471.8,4471.7,4.6622]
[1755405192985,3.2078,4472.9,4471.7,4.6622]
[1755405192986,0.5189,4472.8,4471.8,0.8602]
[1755405193196,0.6758,4472.7,4472.6,1.2316]
[1755405193382,0.2584,4473.0,4472.6,1.4544]
[1755405193583,0.4189,4472.8,4472.7,1.4544]
[1755405193883,0.2605,4473.1,4472.8,0.6374]
[1755405194080,0.2605,4473.4,4473.1,0.8602]
[1755405194283,1.456,4473.9,4473.8,1.2316]
[1755405195191,1.456,4473.9,4473.8,0.171]
[1755405195691,1.456,4473.9,4473.8,0.4227]
[1755405196087,1.456,4473.9,4473.8,0.171]
[1755405197290,1.66991148,4473.9,4473.8,0.171]
[1755405197890,0.3524,4474.2,4474.1,1.0526]
[1755405198089,0.7618,4474.2,4474.1,0.416]
[1755405198296,0.9759,4473.9,4473.8,3.6445]
[1755405198597,1.4942,4473.9,4473.8,4.2455]
[1755405198895,1.4942,4473.9,4473.8,3.8796]
[1755405199388,1.4942,4473.9,4473.8,3.2078]
[1755405200395,1.4942,4473.9,4473.8,3.3738]
[1755405200694,1.4942,4473.9,4473.4,0.6159]
[1755405200889,0.5811,4473.6,4473.5,1.0377]
[1755405201192,1.4942,4473.6,4473.5,1.0377]
[1755405201591,1.4942,4473.6,4473.5,0.416]
[1755405201991,1.4942,4473.6,4473.5,1.0526]
[1755405205095,1.2283,4473.6,4473.5,1.0526]
[1755405205295,0.8335,4473.6,4473.5,1.0526]
[1755405205797,1.2283,4473.6,4473.5,1.0526]
[1755405206592,1.4942,4473.6,4473.5,1.0526]
[1755405206993,1.2283,4473.6,4473.5,1.0526]
[1755405207193,0.6618,4473.6,4473.5,1.0526]
[1755405208392,0.2524,4473.6,4473.5,1.0526]
[1755405208593,0.2524,4474.1,4474.0,0.4361]
[1755405208897,0.4238,4474.1,4474.0,4.2598]
[1755405209088,0.6618,4474.1,4474.0,4.2598]
[1755405209295,1.4942,4474.1,4474.0,4.2598]
[1755405210197,0.5183,4474.0,4473.7,0.25]
[1755405210397,1.4942,4473.8,4473.7,1.0377]
[1755405211105,1.4942,4473.8,4473.7,1.052]
[1755405211290,1.2283,4473.8,4473.7,1.052]
[1755405212195,0.8335,4473.8,4473.7,1.052]
[1755405212401,1.4942,4473.8,4473.7,1.052]
[1755405213403,0.2524,4473.8,4473.7,1.0609]
[1755405213797,0.2524,4473.8,4473.7,1.052]
[1755405214306,0.4238,4473.8,4473.7,1.052]
[1755405215501,0.2524,4473.8,4473.7,1.0609]
[1755405216698,0.3524,4474.2,4474.1,0.6861]
[1755405216904,0.5238,4474.2,4474.1,1.052]
[1755405217106,1.3283,4474.2,4474.1,1.052]
[1755405217300,1.5942,4474.2,4474.1,1.052]
[1755405222302,1.8066969,4474.2,4474.1,1.052]
[1755405222702,1.8066969,4474.2,4474.1,0.6718]
[1755405223009,0.6328,4475.2,4475.1,0.2558]
[1755405223206,1.4542503,4475.2,4475.1,1.052]
[1755405223602,3.2078,4476.0,4475.1,1.052]
[1755405223806,1.31185318,4475.9,4475.8,0.166]
[1755405224006,1.31185318,4475.9,4475.8,1.052]
[1755405224202,0.8335,4475.6,4475.5,1.052]
[1755405224407,1.04592566,4475.6,4475.5,1.052]
[1755405224709,0.8335,4475.6,4475.5,1.052]
[1755405225710,0.6618,4475.6,4475.5,1.052]
[1755405227307,1.2283,4475.6,4475.5,1.052]
[1755405227908,0.3606,4476.1,4475.5,0.4456]
[1755405228106,1.68879886,4476.0,4475.9,0.6596]
[1755405228506,1.4769,4476.0,4475.9,0.6596]
[1755405229003,0.2634,4475.9,4475.2,3.8191]
[1755405229216,0.851,4475.9,4475.8,0.1774]
[1755405229401,0.851,4475.9,4475.8,0.7887]
[1755405229605,0.851,4475.9,4475.8,1.027]
[1755405229817,1.4769,4475.9,4475.8,1.027]
[1755405230507,1.4769,4475.9,4475.2,3.4517]
[1755405230709,0.6831,4475.3,4475.2,4.2499]
[1755405230912,0.2634,4475.3,4475.2,4.2499]
[1755405235626,0.8893,4476.6,4475.2,4.2499]
[1755405235917,1.0437,4475.4,4475.3,1.0421]
[1755405236118,0.6831,4475.4,4475.3,1.0421]
[1755405236419,0.8893,4476.5,4475.5,0.6113]
[1755405236619,0.4142,4475.8,4475.7,3.6386]
[1755405236819,0.4142,4475.8,4475.7,4.2499]
[1755405236820,1.4769,4475.8,4475.7,4.2499]
[1755405237219,0.4368,4475.8,4475.7,4.2499]
[1755405239823,0.2634,4475.8,4475.7,4.2594]
[1755405240532,0.2634,4475.8,4475.7,4.2499]
[1755405240818,1.2116,4475.8,4475.7,4.2499]
[1755405241023,1.4769,4475.8,4475.7,3.8674]
[1755405241222,1.4769,4475.8,4475.7,4.2348]
[1755405241924,0.6831,4475.8,4475.7,4.2499]
[1755405242125,0.2634,4475.8,4475.7,4.2499]
[1755405242326,0.2634,4475.8,4475.7,4.2594]
[1755405242628,0.2634,4475.8,4475.7,4.2499]
[1755405243329,0.6259,4476.5,4475.9,0.1774]
[1755405243528,0.6259,4476.5,4475.8,0.6113]
[1755405243529,1.2135,4476.5,4476.4,1.0421]
[1755405243928,1.4769,4476.5,4476.4,1.0421]
[1755405244422,0.4368,4476.5,4476.4,1.0421]
[1755405244629,0.4368,4476.5,4476.4,1.0516]
[1755405244630,0.2634,4476.5,4476.4,1.0516]
[1755405245828,0.8893,4477.8,4476.5,0.6113]